[Event "Titled Tuesday Blitz April 11 Early 2023"]
[White "Shuvalov, Evgenij"]
[Black "Bodnaruk, Anastasia"]
[WhiteFideId "4187237"]
[BlackFideId "4181751"]
[WhiteElo "2080"]
[BlackElo "2310"]
[Result "1-0"]
[Round "03"]
[TimeControl "180+2"]
[Date "2023.04.11"]
[WhiteClock "0:00:07"]
[BlackClock "0:00:06"]

1. d4 {[%clk 0:03:00]}  Nf6 {[%clk 0:02:59]} 2. c4 {[%clk 0:03:00]}  g6 {[%clk 0:03:00]} 3. Nc3 {[%clk 0:03:00]}  Bg7 {[%clk 0:03:00]} 4. e4 {[%clk 0:03:00]}  d6 {[%clk 0:02:57]} 5. Nf3 {[%clk 0:03:00]}  O-O {[%clk 0:02:56]} 6. Be2 {[%clk 0:03:01]}  e5 {[%clk 0:02:56]} 7. O-O {[%clk 0:03:01]}  Nc6 {[%clk 0:02:56]} 8. d5 {[%clk 0:03:01]}  Ne7 {[%clk 0:02:55]} 9. Ne1 {[%clk 0:03:01]}  Nd7 {[%clk 0:02:49]} 10. Be3 {[%clk 0:03:01]}  f5 {[%clk 0:02:49]} 11. f3 {[%clk 0:03:01]}  f4 {[%clk 0:02:50]} 12. Bf2 {[%clk 0:03:01]}  g5 {[%clk 0:02:49]} 13. Rc1 {[%clk 0:03:01]}  Rf6 {[%clk 0:02:46]} 14. c5 {[%clk 0:02:56]}  dxc5 {[%clk 0:02:42]} 15. b4 {[%clk 0:02:55]}  c4 {[%clk 0:02:06]} 16. Bxc4 {[%clk 0:02:50]}  Kh8 {[%clk 0:02:06]} 17. Nb5 {[%clk 0:02:37]}  a6 {[%clk 0:01:58]} 18. Na7 {[%clk 0:02:36]}  Rxa7 {[%clk 0:01:54]} 19. Bxa7 {[%clk 0:02:37]}  b6 {[%clk 0:01:54]} 20. a4 {[%clk 0:02:07]}  Rg6 {[%clk 0:01:36]} 21. a5 {[%clk 0:02:03]}  g4 {[%clk 0:01:33]} 22. fxg4 {[%clk 0:01:45]}  Nf6 {[%clk 0:01:18]} 23. Be2 {[%clk 0:01:27]}  Nxe4 {[%clk 0:01:10]} 24. Qc2 {[%clk 0:01:01]}  Qxd5 {[%clk 0:01:08]} 25. Rd1 {[%clk 0:00:44]}  Qc6 {[%clk 0:01:06]} 26. Rd8+ {[%clk 0:00:42]}  Ng8 {[%clk 0:01:05]} 27. Qxc6 {[%clk 0:00:33]}  Rxc6 {[%clk 0:01:04]} 28. Bf3 {[%clk 0:00:20]}  Rd6 {[%clk 0:00:55]} 29. Rxc8 {[%clk 0:00:19]}  Nd2 {[%clk 0:00:54]} 30. Rf2 {[%clk 0:00:16]}  e4 {[%clk 0:00:53]} 31. Be2 {[%clk 0:00:12]}  Bd4 {[%clk 0:00:50]} 32. axb6 {[%clk 0:00:11]}  cxb6 {[%clk 0:00:49]} 33. Re8 {[%clk 0:00:08]}  Kg7 {[%clk 0:00:42]} 34. Bb8 {[%clk 0:00:07]}  Bxf2+ {[%clk 0:00:22]} 35. Kxf2 {[%clk 0:00:08]}  Rd5 {[%clk 0:00:22]} 36. Bxf4 {[%clk 0:00:05]}  Nf6 {[%clk 0:00:22]} 37. Re7+ {[%clk 0:00:04]}  Kf8 {[%clk 0:00:22]} 38. Rb7 {[%clk 0:00:03]}  e3+ {[%clk 0:00:21]} 39. Bxe3 {[%clk 0:00:03]}  Nde4+ {[%clk 0:00:21]} 40. Kf3 {[%clk 0:00:03]}  Nd6 {[%clk 0:00:21]} 41. Rxb6 {[%clk 0:00:03]}  Nd7 {[%clk 0:00:19]} 42. Rxa6 {[%clk 0:00:02]}  Ne5+ {[%clk 0:00:19]} 43. Kg3 {[%clk 0:00:02]}  Ne4+ {[%clk 0:00:19]} 44. Kf4 {[%clk 0:00:01]}  Nc3 {[%clk 0:00:16]} 45. Bc5+ {[%clk 0:00:01]}  Kg8 {[%clk 0:00:15]} 46. Nf3 {[%clk 0:00:01]}  Nxe2+ {[%clk 0:00:15]} 47. Ke3 {[%clk 0:00:02]}  Nxf3 {[%clk 0:00:09]} 48. Kxe2 {[%clk 0:00:02]}  Ne5 {[%clk 0:00:09]} 49. Ke3 {[%clk 0:00:03]}  Nc4+ {[%clk 0:00:08]} 50. Ke4 {[%clk 0:00:03]}  Rd2 {[%clk 0:00:09]} 51. g3 {[%clk 0:00:03]}  Rxh2 {[%clk 0:00:08]} 52. g5 {[%clk 0:00:03]}  Re2+ {[%clk 0:00:07]} 53. Kf4 {[%clk 0:00:03]}  Rf2+ {[%clk 0:00:07]} 54. Bxf2 {[%clk 0:00:03]}  Kf8 {[%clk 0:00:07]} 55. Ra7 {[%clk 0:00:04]}  Nd6 {[%clk 0:00:06]} 56. Bc5 {[%clk 0:00:04]}  Ke8 {[%clk 0:00:06]} 57. Bxd6 {[%clk 0:00:05]}  Kd8 {[%clk 0:00:06]} 58. Rxh7 {[%clk 0:00:06]}  Kc8 {[%clk 0:00:06]} 59. g6 {[%clk 0:00:07]} 1-0


[Site "https://www.chess.com"]

[Event "Titled Tuesday Blitz April 11 Early 2023"]
[White "Kalashian, David"]
[Black "Manukian, Artak"]
[WhiteFideId "13302418"]
[BlackFideId "13301373"]
[WhiteElo "2490"]
[BlackElo "2130"]
[Result "1/2-1/2"]
[Round "03"]
[TimeControl "180+2"]
[Date "2023.04.11"]
[WhiteClock "0:00:16"]
[BlackClock "0:00:14"]

1. d4 {[%clk 0:03:00]}  d5 {[%clk 0:02:58]} 2. Nf3 {[%clk 0:03:00]}  Nf6 {[%clk 0:02:58]} 3. c4 {[%clk 0:02:59]}  dxc4 {[%clk 0:02:59]} 4. e3 {[%clk 0:02:58]}  e6 {[%clk 0:02:59]} 5. Bxc4 {[%clk 0:02:59]}  c5 {[%clk 0:02:59]} 6. O-O {[%clk 0:02:59]}  a6 {[%clk 0:02:59]} 7. a4 {[%clk 0:02:58]}  Nc6 {[%clk 0:02:59]} 8. Nc3 {[%clk 0:02:58]}  cxd4 {[%clk 0:02:57]} 9. exd4 {[%clk 0:02:58]}  Be7 {[%clk 0:02:57]} 10. Bg5 {[%clk 0:02:58]}  O-O {[%clk 0:02:55]} 11. Re1 {[%clk 0:02:58]}  Nb4 {[%clk 0:02:55]} 12. Qe2 {[%clk 0:02:56]}  Bd7 {[%clk 0:02:51]} 13. Ne5 {[%clk 0:02:55]}  Rc8 {[%clk 0:02:27]} 14. Rad1 {[%clk 0:02:45]}  Be8 {[%clk 0:01:10]} 15. Bb3 {[%clk 0:02:32]}  h6 {[%clk 0:01:04]} 16. Bh4 {[%clk 0:02:28]}  Nfd5 {[%clk 0:00:49]} 17. Nxd5 {[%clk 0:02:19]}  Nxd5 {[%clk 0:00:43]} 18. Bxd5 {[%clk 0:02:18]}  Bxh4 {[%clk 0:00:33]} 19. Bxb7 {[%clk 0:02:16]}  Rb8 {[%clk 0:00:29]} 20. Bxa6 {[%clk 0:02:04]}  Bxa4 {[%clk 0:00:20]} 21. Rd3 {[%clk 0:02:01]}  Qa5 {[%clk 0:00:16]} 22. Bc4 {[%clk 0:01:58]}  Bf6 {[%clk 0:00:15]} 23. b3 {[%clk 0:01:54]}  Be8 {[%clk 0:00:15]} 24. Ng4 {[%clk 0:01:51]}  Bd8 {[%clk 0:00:13]} 25. Rg3 {[%clk 0:01:44]}  Bc7 {[%clk 0:00:12]} 26. Rh3 {[%clk 0:01:06]}  Qg5 {[%clk 0:00:10]} 27. Ne5 {[%clk 0:01:03]}  Bxe5 {[%clk 0:00:09]} 28. Qxe5 {[%clk 0:01:00]}  Qxe5 {[%clk 0:00:10]} 29. dxe5 {[%clk 0:00:59]}  Bc6 {[%clk 0:00:10]} 30. Rd3 {[%clk 0:00:55]}  Rfd8 {[%clk 0:00:10]} 31. Red1 {[%clk 0:00:51]}  Rxd3 {[%clk 0:00:10]} 32. Rxd3 {[%clk 0:00:52]}  Bd5 {[%clk 0:00:10]} 33. Bxd5 {[%clk 0:00:51]}  exd5 {[%clk 0:00:11]} 34. f4 {[%clk 0:00:49]}  Rb5 {[%clk 0:00:11]} 35. Kf2 {[%clk 0:00:49]}  Kf8 {[%clk 0:00:11]} 36. Ke3 {[%clk 0:00:49]}  Ke7 {[%clk 0:00:12]} 37. g4 {[%clk 0:00:48]}  Ke6 {[%clk 0:00:12]} 38. Rc3 {[%clk 0:00:47]}  Rb4 {[%clk 0:00:11]} 39. Rc6+ {[%clk 0:00:47]}  Ke7 {[%clk 0:00:11]} 40. Rc7+ {[%clk 0:00:42]}  Ke6 {[%clk 0:00:11]} 41. Rc6+ {[%clk 0:00:28]}  Ke7 {[%clk 0:00:11]} 42. f5 {[%clk 0:00:28]}  Re4+ {[%clk 0:00:09]} 43. Kd3 {[%clk 0:00:27]}  Rxe5 {[%clk 0:00:10]} 44. b4 {[%clk 0:00:26]}  Re4 {[%clk 0:00:09]} 45. b5 {[%clk 0:00:26]}  Rxg4 {[%clk 0:00:08]} 46. b6 {[%clk 0:00:26]}  Rb4 {[%clk 0:00:09]} 47. Kc3 {[%clk 0:00:24]}  Rb1 {[%clk 0:00:09]} 48. Kd4 {[%clk 0:00:25]}  g5 {[%clk 0:00:08]} 49. fxg6 {[%clk 0:00:23]}  fxg6 {[%clk 0:00:08]} 50. Kc5 {[%clk 0:00:23]}  d4 {[%clk 0:00:07]} 51. Rxg6 {[%clk 0:00:19]}  d3 {[%clk 0:00:07]} 52. Rg2 {[%clk 0:00:19]}  Rc1+ {[%clk 0:00:06]} 53. Kb5 {[%clk 0:00:19]}  Rc2 {[%clk 0:00:06]} 54. Rg3 {[%clk 0:00:18]}  d2 {[%clk 0:00:06]} 55. Rd3 {[%clk 0:00:19]}  Rb2+ {[%clk 0:00:06]} 56. Kc6 {[%clk 0:00:17]}  Rc2+ {[%clk 0:00:06]} 57. Kb7 {[%clk 0:00:18]}  Ke6 {[%clk 0:00:05]} 58. Ka7 {[%clk 0:00:18]}  Ra2+ {[%clk 0:00:04]} 59. Kb8 {[%clk 0:00:16]}  Ke5 {[%clk 0:00:05]} 60. b7 {[%clk 0:00:13]}  Ke4 {[%clk 0:00:05]} 61. Rd7 {[%clk 0:00:11]}  Rb2 {[%clk 0:00:05]} 62. Kc8 {[%clk 0:00:11]}  Ke3 {[%clk 0:00:05]} 63. Re7+ {[%clk 0:00:09]}  Kf2 {[%clk 0:00:05]} 64. Rf7+ {[%clk 0:00:08]}  Ke2 {[%clk 0:00:06]} 65. Re7+ {[%clk 0:00:09]}  Kf2 {[%clk 0:00:06]} 66. Rd7 {[%clk 0:00:07]}  Ke2 {[%clk 0:00:06]} 67. b8=Q {[%clk 0:00:06]}  Rxb8+ {[%clk 0:00:06]} 68. Kxb8 {[%clk 0:00:07]}  d1=Q {[%clk 0:00:07]} 69. Rxd1 {[%clk 0:00:07]}  Kxd1 {[%clk 0:00:08]} 70. Kc7 {[%clk 0:00:08]}  Ke2 {[%clk 0:00:08]} 71. Kd6 {[%clk 0:00:09]}  h5 {[%clk 0:00:09]} 72. Ke5 {[%clk 0:00:09]}  Kf3 {[%clk 0:00:09]} 73. Kf5 {[%clk 0:00:08]}  Kg2 {[%clk 0:00:09]} 74. h4 {[%clk 0:00:09]}  Kf3 {[%clk 0:00:08]} 75. Kg5 {[%clk 0:00:10]}  Ke4 {[%clk 0:00:09]} 76. Kg6 {[%clk 0:00:08]}  Ke5 {[%clk 0:00:09]} 77. Kg5 {[%clk 0:00:09]}  Ke6 {[%clk 0:00:09]} 78. Kg6 {[%clk 0:00:10]}  Ke7 {[%clk 0:00:09]} 79. Kg7 {[%clk 0:00:10]}  Ke6 {[%clk 0:00:10]} 80. Kg6 {[%clk 0:00:11]}  Ke7 {[%clk 0:00:10]} 81. Kxh5 {[%clk 0:00:12]}  Kf7 {[%clk 0:00:11]} 82. Kh6 {[%clk 0:00:13]}  Kg8 {[%clk 0:00:11]} 83. h5 {[%clk 0:00:14]}  Kh8 {[%clk 0:00:12]} 84. Kg6 {[%clk 0:00:14]}  Kg8 {[%clk 0:00:13]} 85. h6 {[%clk 0:00:15]}  Kh8 {[%clk 0:00:14]} 86. h7 {[%clk 0:00:16]} 1/2-1/2


[Site "https://www.chess.com"]

[Event "Titled Tuesday Blitz April 11 Early 2023"]
[White "Veiga, Jose Francisco R P Neves"]
[Black "Yosha_Iglesias"]
[WhiteFideId "1930087"]
[WhiteElo "2320"]
[BlackElo "2458"]
[Result "1-0"]
[Round "03"]
[TimeControl "180+2"]
[Date "2023.04.11"]
[WhiteClock "0:00:21"]
[BlackClock "0:00:36"]

1. e4 {[%clk 0:02:17]}  c5 {[%clk 0:02:59]} 2. Nf3 {[%clk 0:02:17]}  d6 {[%clk 0:02:59]} 3. Bb5+ {[%clk 0:02:16]}  Bd7 {[%clk 0:02:59]} 4. Bxd7+ {[%clk 0:02:14]}  Qxd7 {[%clk 0:03:00]} 5. O-O {[%clk 0:02:14]}  Nc6 {[%clk 0:03:00]} 6. c4 {[%clk 0:02:11]}  Nf6 {[%clk 0:02:58]} 7. Nc3 {[%clk 0:02:11]}  g6 {[%clk 0:02:57]} 8. d4 {[%clk 0:02:11]}  cxd4 {[%clk 0:02:58]} 9. Nxd4 {[%clk 0:02:11]}  Bg7 {[%clk 0:02:39]} 10. Nc2 {[%clk 0:01:58]}  O-O {[%clk 0:02:30]} 11. f3 {[%clk 0:01:58]}  Qe6 {[%clk 0:02:24]} 12. Qe2 {[%clk 0:01:54]}  Rfc8 {[%clk 0:02:16]} 13. Be3 {[%clk 0:01:39]}  Nd7 {[%clk 0:01:40]} 14. Rac1 {[%clk 0:01:37]}  Bxc3 {[%clk 0:01:39]} 15. bxc3 {[%clk 0:01:36]}  Nde5 {[%clk 0:01:36]} 16. c5 {[%clk 0:01:33]}  Qc4 {[%clk 0:01:28]} 17. Qxc4 {[%clk 0:01:21]}  Nxc4 {[%clk 0:01:28]} 18. cxd6 {[%clk 0:01:22]}  Nxd6 {[%clk 0:01:24]} 19. Rfd1 {[%clk 0:01:15]}  f6 {[%clk 0:01:21]} 20. Nb4 {[%clk 0:01:09]}  Nxb4 {[%clk 0:01:14]} 21. cxb4 {[%clk 0:01:09]}  b6 {[%clk 0:01:15]} 22. Kf2 {[%clk 0:01:08]}  Kf7 {[%clk 0:01:09]} 23. Ke2 {[%clk 0:01:07]}  Rxc1 {[%clk 0:01:09]} 24. Rxc1 {[%clk 0:01:07]}  Rc8 {[%clk 0:01:09]} 25. Rxc8 {[%clk 0:01:08]}  Nxc8 {[%clk 0:01:10]} 26. Kd3 {[%clk 0:01:09]}  Nd6 {[%clk 0:01:04]} 27. a4 {[%clk 0:01:06]}  e5 {[%clk 0:01:04]} 28. b5 {[%clk 0:00:59]}  Nb7 {[%clk 0:00:56]} 29. Kc3 {[%clk 0:00:57]}  Ke6 {[%clk 0:00:56]} 30. Kb4 {[%clk 0:00:57]}  Kd6 {[%clk 0:00:54]} 31. Bh6 {[%clk 0:00:57]}  Ke7 {[%clk 0:00:50]} 32. h4 {[%clk 0:00:55]}  Nc5 {[%clk 0:00:46]} 33. a5 {[%clk 0:00:50]}  Nd3+ {[%clk 0:00:45]} 34. Kc3 {[%clk 0:00:49]}  Ne1 {[%clk 0:00:39]} 35. Be3 {[%clk 0:00:23]}  Nxg2 {[%clk 0:00:36]} 36. Bxb6 {[%clk 0:00:21]} 1-0


[Site "https://www.chess.com"]

[Event "Titled Tuesday Blitz April 11 Early 2023"]
[White "Sandro970"]
[Black "Borgaonkar Akshay"]
[BlackFideId "25639110"]
[WhiteElo "2457"]
[BlackElo "2063"]
[Result "1/2-1/2"]
[Round "03"]
[TimeControl "180+2"]
[Date "2023.04.11"]
[WhiteClock "0:00:09"]
[BlackClock "0:00:03"]

1. e4 {[%clk 0:02:59]}  c6 {[%clk 0:02:48]} 2. d4 {[%clk 0:02:59]}  d5 {[%clk 0:02:48]} 3. exd5 {[%clk 0:03:00]}  cxd5 {[%clk 0:02:48]} 4. Bd3 {[%clk 0:03:01]}  Nc6 {[%clk 0:02:47]} 5. c3 {[%clk 0:03:00]}  Qc7 {[%clk 0:02:47]} 6. Nf3 {[%clk 0:03:00]}  Nf6 {[%clk 0:02:48]} 7. O-O {[%clk 0:02:59]}  Bg4 {[%clk 0:02:49]} 8. h3 {[%clk 0:02:59]}  Bh5 {[%clk 0:02:48]} 9. Bg5 {[%clk 0:02:57]}  e6 {[%clk 0:02:48]} 10. Re1 {[%clk 0:02:55]}  Be7 {[%clk 0:02:47]} 11. Nbd2 {[%clk 0:02:55]}  h6 {[%clk 0:02:47]} 12. Bh4 {[%clk 0:02:55]}  Bd6 {[%clk 0:02:43]} 13. Nf1 {[%clk 0:02:55]}  O-O-O {[%clk 0:02:31]} 14. Bg3 {[%clk 0:02:50]}  g5 {[%clk 0:02:30]} 15. Bxd6 {[%clk 0:02:33]}  Qxd6 {[%clk 0:02:28]} 16. Be2 {[%clk 0:02:29]}  Ne4 {[%clk 0:02:24]} 17. Ne5 {[%clk 0:02:25]}  Bxe2 {[%clk 0:01:55]} 18. Qxe2 {[%clk 0:02:26]}  Nxe5 {[%clk 0:01:52]} 19. dxe5 {[%clk 0:02:26]}  Qb6 {[%clk 0:01:49]} 20. Rab1 {[%clk 0:02:20]}  h5 {[%clk 0:01:48]} 21. Nd2 {[%clk 0:02:20]}  Nxd2 {[%clk 0:01:44]} 22. Qxd2 {[%clk 0:02:21]}  g4 {[%clk 0:01:45]} 23. h4 {[%clk 0:02:19]}  g3 {[%clk 0:01:45]} 24. Qd4 {[%clk 0:02:17]}  Qxd4 {[%clk 0:01:42]} 25. cxd4 {[%clk 0:02:17]}  gxf2+ {[%clk 0:01:43]} 26. Kxf2 {[%clk 0:02:17]}  Rhg8 {[%clk 0:01:44]} 27. Rbc1+ {[%clk 0:02:15]}  Kd7 {[%clk 0:01:44]} 28. Rc3 {[%clk 0:02:13]}  Rg4 {[%clk 0:01:44]} 29. Rec1 {[%clk 0:02:12]}  Ke8 {[%clk 0:01:27]} 30. Rc7 {[%clk 0:01:59]}  Rd7 {[%clk 0:01:27]} 31. Rc8+ {[%clk 0:01:58]}  Ke7 {[%clk 0:01:25]} 32. g3 {[%clk 0:01:53]}  Rxd4 {[%clk 0:01:22]} 33. Rh8 {[%clk 0:01:51]}  Rc4 {[%clk 0:01:08]} 34. Re1 {[%clk 0:01:44]}  d4 {[%clk 0:01:03]} 35. Rxh5 {[%clk 0:01:40]}  Rc2+ {[%clk 0:01:03]} 36. Kf3 {[%clk 0:01:33]}  d3 {[%clk 0:01:01]} 37. Rd1 {[%clk 0:01:30]}  Rxb2 {[%clk 0:01:00]} 38. Rh8 {[%clk 0:01:29]}  Rxa2 {[%clk 0:00:59]} 39. h5 {[%clk 0:01:30]}  Rh2 {[%clk 0:00:59]} 40. h6 {[%clk 0:01:27]}  d2 {[%clk 0:00:54]} 41. h7 {[%clk 0:01:17]}  a5 {[%clk 0:00:49]} 42. g4 {[%clk 0:01:12]}  a4 {[%clk 0:00:48]} 43. Kg3 {[%clk 0:01:12]}  Rh6 {[%clk 0:00:43]} 44. g5 {[%clk 0:01:12]}  Rd3+ {[%clk 0:00:38]} 45. Kg4 {[%clk 0:01:04]}  Rh2 {[%clk 0:00:36]} 46. g6 {[%clk 0:01:03]}  fxg6 {[%clk 0:00:25]} 47. Rb8 {[%clk 0:00:56]}  Rxh7 {[%clk 0:00:21]} 48. Rxb7+ {[%clk 0:00:53]}  Rd7 {[%clk 0:00:21]} 49. Rxd7+ {[%clk 0:00:54]}  Kxd7 {[%clk 0:00:22]} 50. Rxd2+ {[%clk 0:00:54]}  Ke7 {[%clk 0:00:22]} 51. Rb2 {[%clk 0:00:16]}  Rh5 {[%clk 0:00:21]} 52. Rb7+ {[%clk 0:00:16]}  Kd8 {[%clk 0:00:21]} 53. Kf4 {[%clk 0:00:17]}  Rf5+ {[%clk 0:00:19]} 54. Ke4 {[%clk 0:00:17]}  g5 {[%clk 0:00:19]} 55. Rg7 {[%clk 0:00:17]}  Rf4+ {[%clk 0:00:17]} 56. Ke3 {[%clk 0:00:16]}  a3 {[%clk 0:00:14]} 57. Rxg5 {[%clk 0:00:14]}  a2 {[%clk 0:00:12]} 58. Rg1 {[%clk 0:00:12]}  Ra4 {[%clk 0:00:12]} 59. Ra1 {[%clk 0:00:11]}  Kd7 {[%clk 0:00:12]} 60. Kd3 {[%clk 0:00:12]}  Kc6 {[%clk 0:00:12]} 61. Kc3 {[%clk 0:00:12]}  Kd5 {[%clk 0:00:13]} 62. Kb3 {[%clk 0:00:13]}  Ra8 {[%clk 0:00:13]} 63. Kb2 {[%clk 0:00:13]}  Kxe5 {[%clk 0:00:12]} 64. Re1+ {[%clk 0:00:13]}  Kf4 {[%clk 0:00:13]} 65. Ka1 {[%clk 0:00:14]}  e5 {[%clk 0:00:13]} 66. Rf1+ {[%clk 0:00:14]}  Ke4 {[%clk 0:00:11]} 67. Re1+ {[%clk 0:00:15]}  Kd5 {[%clk 0:00:10]} 68. Rd1+ {[%clk 0:00:15]}  Ke6 {[%clk 0:00:11]} 69. Re1 {[%clk 0:00:16]}  Ra4 {[%clk 0:00:10]} 70. Kb2 {[%clk 0:00:14]}  e4 {[%clk 0:00:08]} 71. Ka1 {[%clk 0:00:13]}  Ke5 {[%clk 0:00:08]} 72. Rh1 {[%clk 0:00:14]}  Kd4 {[%clk 0:00:07]} 73. Rh3 {[%clk 0:00:12]}  e3 {[%clk 0:00:07]} 74. Rh4+ {[%clk 0:00:13]}  Kd3 {[%clk 0:00:07]} 75. Rxa4 {[%clk 0:00:13]}  e2 {[%clk 0:00:07]} 76. Ra3+ {[%clk 0:00:12]}  Kd4 {[%clk 0:00:07]} 77. Ra4+ {[%clk 0:00:12]}  Kd5 {[%clk 0:00:07]} 78. Ra5+ {[%clk 0:00:11]}  Kd6 {[%clk 0:00:07]} 79. Ra6+ {[%clk 0:00:09]}  Kd7 {[%clk 0:00:03]} 80. Ra7+ {[%clk 0:00:09]}  Kd8 {[%clk 0:00:03]} 81. Ra8+ {[%clk 0:00:09]}  Ke7 {[%clk 0:00:04]} 82. Ra7+ {[%clk 0:00:07]}  Kf6 {[%clk 0:00:04]} 83. Ra6+ {[%clk 0:00:07]}  Kf5 {[%clk 0:00:04]} 84. Ra5+ {[%clk 0:00:08]}  Kf4 {[%clk 0:00:04]} 85. Ra4+ {[%clk 0:00:08]}  Kf3 {[%clk 0:00:04]} 86. Ra3+ {[%clk 0:00:09]}  Kf4 {[%clk 0:00:03]} 87. Ra4+ {[%clk 0:00:09]}  Kf5 {[%clk 0:00:03]} 88. Ra5+ {[%clk 0:00:09]}  Kf6 {[%clk 0:00:03]} 89. Ra6+ {[%clk 0:00:10]}  Ke7 {[%clk 0:00:02]} 90. Ra7+ {[%clk 0:00:10]}  Ke8 {[%clk 0:00:02]} 91. Ra8+ {[%clk 0:00:10]}  Kf7 {[%clk 0:00:02]} 92. Ra7+ {[%clk 0:00:09]}  Kf6 {[%clk 0:00:03]} 93. Ra6+ {[%clk 0:00:09]} 1/2-1/2


[Site "https://www.chess.com"]

[Event "Titled Tuesday Blitz April 11 Early 2023"]
[White "Domingo Nunez, Ruben"]
[Black "Huber, Benedikt"]
[WhiteFideId "22245570"]
[BlackFideId "12923583"]
[WhiteElo "2404"]
[BlackElo "2199"]
[Result "0-1"]
[Round "03"]
[TimeControl "180+2"]
[Date "2023.04.11"]
[WhiteClock "0:00:03"]
[BlackClock "0:00:14"]

1. b3 {[%clk 0:02:59]}  f5 {[%clk 0:02:56]} 2. Bb2 {[%clk 0:03:00]}  Nf6 {[%clk 0:02:56]} 3. c4 {[%clk 0:03:00]}  d6 {[%clk 0:02:55]} 4. d4 {[%clk 0:03:00]}  e6 {[%clk 0:02:56]} 5. Nc3 {[%clk 0:03:01]}  Be7 {[%clk 0:02:56]} 6. Qc2 {[%clk 0:03:02]}  b6 {[%clk 0:02:56]} 7. O-O-O {[%clk 0:02:24]}  O-O {[%clk 0:02:54]} 8. Nf3 {[%clk 0:02:18]}  a5 {[%clk 0:02:35]} 9. h3 {[%clk 0:02:10]}  a4 {[%clk 0:02:29]} 10. Nxa4 {[%clk 0:02:10]}  Ne4 {[%clk 0:02:28]} 11. e3 {[%clk 0:02:07]}  Nc6 {[%clk 0:02:22]} 12. a3 {[%clk 0:02:06]}  Bb7 {[%clk 0:02:16]} 13. Bd3 {[%clk 0:02:05]}  Nb8 {[%clk 0:02:11]} 14. g4 {[%clk 0:01:49]}  d5 {[%clk 0:02:08]} 15. gxf5 {[%clk 0:01:46]}  exf5 {[%clk 0:02:09]} 16. Ne5 {[%clk 0:01:46]}  Nd7 {[%clk 0:02:08]} 17. cxd5 {[%clk 0:01:44]}  Bxd5 {[%clk 0:01:45]} 18. Bc4 {[%clk 0:01:44]}  Ndf6 {[%clk 0:01:38]} 19. f3 {[%clk 0:01:44]}  Nd6 {[%clk 0:01:24]} 20. Bxd5+ {[%clk 0:01:19]}  Nxd5 {[%clk 0:01:25]} 21. Rhe1 {[%clk 0:01:19]}  Bh4 {[%clk 0:01:18]} 22. Re2 {[%clk 0:01:15]}  f4 {[%clk 0:01:10]} 23. exf4 {[%clk 0:00:59]}  Nxf4 {[%clk 0:01:10]} 24. Red2 {[%clk 0:00:53]}  Nd5 {[%clk 0:01:07]} 25. Re2 {[%clk 0:00:46]}  Bg5+ {[%clk 0:01:06]} 26. Kb1 {[%clk 0:00:46]}  Ne3 {[%clk 0:01:04]} 27. Rxe3 {[%clk 0:00:39]}  Bxe3 {[%clk 0:01:05]} 28. d5 {[%clk 0:00:39]}  Bf4 {[%clk 0:01:02]} 29. Nc6 {[%clk 0:00:39]}  Qg5 {[%clk 0:00:56]} 30. Nd4 {[%clk 0:00:39]}  Qxd5 {[%clk 0:00:37]} 31. Nc6 {[%clk 0:00:21]}  Qf7 {[%clk 0:00:37]} 32. Ka2 {[%clk 0:00:20]}  Rxa4 {[%clk 0:00:37]} 33. Rg1 {[%clk 0:00:18]}  Nf5 {[%clk 0:00:27]} 34. Qxf5 {[%clk 0:00:11]}  Rxa3+ {[%clk 0:00:20]} 35. Kxa3 {[%clk 0:00:09]}  Bd6+ {[%clk 0:00:16]} 36. Ka2 {[%clk 0:00:03]}  Ra8+ {[%clk 0:00:16]} 37. Ba3 {[%clk 0:00:03]}  Rxa3+ {[%clk 0:00:15]} 38. Kb2 {[%clk 0:00:03]}  Qxb3+ {[%clk 0:00:14]} 0-1


[Site "https://www.chess.com"]

[Event "Titled Tuesday Blitz April 11 Early 2023"]
[White "Perez Gormaz, Matias"]
[Black "Chernov, Mikhail"]
[WhiteFideId "3406342"]
[BlackFideId "24143170"]
[WhiteElo "2362"]
[BlackElo "2113"]
[Result "0-1"]
[Round "03"]
[TimeControl "180+2"]
[Date "2023.04.11"]
[WhiteClock "0:00:02"]
[BlackClock "0:00:09"]

1. e4 {[%clk 0:03:00]}  c5 {[%clk 0:02:59]} 2. Nf3 {[%clk 0:03:01]}  Nc6 {[%clk 0:02:57]} 3. Bb5 {[%clk 0:02:58]}  g6 {[%clk 0:02:56]} 4. Bxc6 {[%clk 0:02:54]}  bxc6 {[%clk 0:02:56]} 5. O-O {[%clk 0:02:52]}  Bg7 {[%clk 0:02:57]} 6. c3 {[%clk 0:02:50]}  d6 {[%clk 0:02:57]} 7. d4 {[%clk 0:02:47]}  cxd4 {[%clk 0:02:58]} 8. cxd4 {[%clk 0:02:48]}  Nh6 {[%clk 0:02:59]} 9. h3 {[%clk 0:02:47]}  O-O {[%clk 0:02:59]} 10. Nc3 {[%clk 0:02:47]}  f6 {[%clk 0:02:59]} 11. Qc2 {[%clk 0:02:38]}  Nf7 {[%clk 0:02:59]} 12. b3 {[%clk 0:02:35]}  Bd7 {[%clk 0:02:57]} 13. Bb2 {[%clk 0:02:33]}  Qa5 {[%clk 0:02:56]} 14. Rfd1 {[%clk 0:02:32]}  Qh5 {[%clk 0:02:56]} 15. Nh2 {[%clk 0:02:28]}  g5 {[%clk 0:02:45]} 16. Qe2 {[%clk 0:02:24]}  Qg6 {[%clk 0:02:43]} 17. Rd3 {[%clk 0:02:03]}  h5 {[%clk 0:02:41]} 18. Rad1 {[%clk 0:02:03]}  Rae8 {[%clk 0:02:26]} 19. Rg3 {[%clk 0:01:59]}  f5 {[%clk 0:02:13]} 20. exf5 {[%clk 0:01:30]}  Bxf5 {[%clk 0:02:14]} 21. Re3 {[%clk 0:01:30]}  g4 {[%clk 0:01:37]} 22. hxg4 {[%clk 0:01:27]}  hxg4 {[%clk 0:01:38]} 23. Nf1 {[%clk 0:01:16]}  e5 {[%clk 0:01:35]} 24. Ng3 {[%clk 0:01:08]}  Bc8 {[%clk 0:01:20]} 25. d5 {[%clk 0:01:04]}  c5 {[%clk 0:01:17]} 26. Nb5 {[%clk 0:00:49]}  Bh6 {[%clk 0:01:15]} 27. Re4 {[%clk 0:00:41]}  Bf4 {[%clk 0:01:11]} 28. Nxa7 {[%clk 0:00:27]}  Ng5 {[%clk 0:01:05]} 29. Ra4 {[%clk 0:00:17]}  Bd7 {[%clk 0:01:03]} 30. Nc6 {[%clk 0:00:17]}  Rf7 {[%clk 0:00:50]} 31. Bc1 {[%clk 0:00:17]}  Rh7 {[%clk 0:00:47]} 32. Bxf4 {[%clk 0:00:11]}  exf4 {[%clk 0:00:48]} 33. Ra8 {[%clk 0:00:09]}  Rxa8 {[%clk 0:00:41]} 34. Ne7+ {[%clk 0:00:09]}  Rxe7 {[%clk 0:00:41]} 35. Qxe7 {[%clk 0:00:08]}  fxg3 {[%clk 0:00:36]} 36. Qxd7 {[%clk 0:00:08]}  gxf2+ {[%clk 0:00:35]} 37. Kxf2 {[%clk 0:00:08]}  Qf7+ {[%clk 0:00:33]} 38. Qxf7+ {[%clk 0:00:08]}  Nxf7 {[%clk 0:00:33]} 39. Rd2 {[%clk 0:00:09]}  Ne5 {[%clk 0:00:33]} 40. Ke3 {[%clk 0:00:09]}  Kf7 {[%clk 0:00:33]} 41. Ke4 {[%clk 0:00:10]}  Kf6 {[%clk 0:00:33]} 42. Rf2+ {[%clk 0:00:09]}  Kg5 {[%clk 0:00:31]} 43. Rf5+ {[%clk 0:00:08]}  Kh4 {[%clk 0:00:31]} 44. Rf6 {[%clk 0:00:08]}  Ra6 {[%clk 0:00:29]} 45. Kf4 {[%clk 0:00:05]}  Kh5 {[%clk 0:00:20]} 46. g3 {[%clk 0:00:06]}  Rxa2 {[%clk 0:00:16]} 47. Rxd6 {[%clk 0:00:05]}  Ng6+ {[%clk 0:00:14]} 48. Ke3 {[%clk 0:00:04]}  Rg2 {[%clk 0:00:14]} 49. Rd7 {[%clk 0:00:02]}  Rxg3+ {[%clk 0:00:14]} 50. Ke4 {[%clk 0:00:02]}  Rxb3 {[%clk 0:00:13]} 51. Kf5 {[%clk 0:00:03]}  Rf3+ {[%clk 0:00:12]} 52. Ke4 {[%clk 0:00:03]}  Rf1 {[%clk 0:00:11]} 53. d6 {[%clk 0:00:04]}  Kg5 {[%clk 0:00:12]} 54. Rc7 {[%clk 0:00:02]}  Rd1 {[%clk 0:00:12]} 55. Rxc5+ {[%clk 0:00:02]}  Kh4 {[%clk 0:00:09]} 56. Rc6 {[%clk 0:00:03]}  g3 {[%clk 0:00:09]} 57. Kf3 {[%clk 0:00:03]}  Rd3+ {[%clk 0:00:08]} 58. Kg2 {[%clk 0:00:01]}  Nf4+ {[%clk 0:00:08]} 59. Kf1 {[%clk 0:00:02]}  Kg4 {[%clk 0:00:08]} 60. Ke1 {[%clk 0:00:02]}  Kf3 {[%clk 0:00:08]} 61. Rc3 {[%clk 0:00:01]}  Rxc3 {[%clk 0:00:08]} 62. Kd2 {[%clk 0:00:02]}  Rc5 {[%clk 0:00:08]} 63. d7 {[%clk 0:00:02]}  Rd5+ {[%clk 0:00:09]} 0-1


[Site "https://www.chess.com"]